fUSD/lending_fUSD_20251126
["ID","MTS","AMOUNT","RATE_DAILY","PERIOD"]
[394913793,1764115831929,-424.5872,0.00028679,2]
[394913794,1764115831944,-173.58810173,0.00036953,77]
[394913795,1764115831956,-1200.0,0.00037051,3]
[394913796,1764115831966,-1200.0,0.00037052,3]
[394913797,1764115831976,-400.0,0.00037052,3]
[394913798,1764115831987,-300.0,0.00037052,3]
[394913799,1764115831998,-300.0,0.00037052,3]
[394913800,1764115832008,-860.47985805,0.00037053,30]
[394913801,1764115832017,-676.52954514,0.00037053,30]
[394913802,1764115832028,-530.29213172,0.00037053,30]
[394913803,1764115832037,-197.34812686,0.00037053,30]
[394913804,1764115832047,-500.0,0.00037053,30]
[394913805,1764115832059,-500.0,0.00037053,30]
[394913806,1764115832068,-173.58810173,0.00039396,83]
[394913807,1764115832079,-296.0,0.00039643,5]
[394913808,1764115832088,-571.0,0.00039999,4]
[394913809,1764115832099,-3761.39148477,0.0004,3]
[394913810,1764115832112,-469.75597958,0.0004,3]
[394913811,1764115832125,-404.891496,0.0004,3]
[394913812,1764115832137,-446.28573762,0.0004,3]
[394913813,1764115832149,-317.96,0.0004,3]
[394913814,1764115832165,-6378.37033482,0.0004,3]
[394913835,1764115837812,-1298.01987285,0.0004,3]
[394913850,1764115840134,-451.75,0.0004,3]
[394913879,1764115844237,-21709.58559694,0.0004,3]
[394913880,1764115844247,-150.0,0.00040042,120]
[394913881,1764115844256,-11000.0,0.00040428,7]
[394913882,1764115844265,-568.67,0.00040532,2]
[394913883,1764115844274,-200.0,0.00040573,2]
[394913884,1764115844283,-298.78553718,0.0004068,3]
[394913885,1764115844292,-150.0,0.00040694,120]
[394913886,1764115844301,-500.0,0.00040705,30]
[394913887,1764115844312,-701.83,0.00040755,2]
[394913888,1764115844322,-701.83,0.00040755,2]
[394913889,1764115844331,-5000.0,0.00040916,120]
[394913890,1764115844340,-500.0,0.00040979,30]
[394913891,1764115844350,-572.13826602,0.0004112,10]
[394913892,1764115844359,-150.0,0.00041233,120]
[394913893,1764115844368,-500.0,0.00041253,30]
[394913894,1764115844378,-150.0,0.00041303,30]
[394913895,1764115844390,-551.34,0.00041303,30]
[394913896,1764115844399,-150.0,0.00041303,30]
[394913897,1764115844408,-150.0,0.00041303,30]
[394913898,1764115844417,-177.69,0.00041303,30]
[394913899,1764115844426,-150.0,0.00041303,30]
[394913900,1764115844435,-551.34,0.00041303,30]
[394913901,1764115844445,-177.69,0.00041303,30]
[394913902,1764115844454,-150.0,0.00041303,30]
[394913903,1764115844463,-150.0,0.00041303,30]
[394913904,1764115844472,-1101.48,0.00041303,30]
[394913905,1764115844481,-177.69,0.00041303,30]
[394913906,1764115844490,-150.0,0.00041303,30]
[394913907,1764115844499,-150.0,0.00041303,30]
[394913908,1764115844512,-150.0,0.00041303,30]
[394913909,1764115844522,-177.69,0.00041303,30]
[394913910,1764115844531,-150.0,0.00041303,30]
[394913911,1764115844540,-151.22,0.00041303,30]
[394913912,1764115844549,-231.18,0.00041303,30]
[394913913,1764115844558,-355.29,0.00041303,30]
[394913914,1764115844569,-373.04,0.00041303,30]
[394913915,1764115844581,-177.69,0.00041303,30]
[394913916,1764115844593,-177.69,0.00041303,30]
[394913917,1764115844604,-169.8,0.00041303,30]
[394913918,1764115844615,-355.29,0.00041303,30]
[394913919,1764115844626,-177.69,0.00041303,30]
[394913920,1764115844638,-169.8,0.00041303,30]
[394913921,1764115844648,-177.69,0.00041303,30]
[394913922,1764115844658,-169.8,0.00041303,30]
[394913923,1764115844668,-1212.01,0.00041303,30]
[394913924,1764115844678,-356.36,0.00041303,30]
[394913925,1764115844688,-1212.01,0.00041303,30]
[394913926,1764115844697,-169.8,0.00041303,30]
[394913927,1764115844708,-417.6,0.00041303,30]
[394913928,1764115844717,-184.169,0.00041329,60]
[394913929,1764115844728,-701.83,0.0004133,30]
[394913930,1764115844738,-701.83,0.0004133,30]
[394913931,1764115844748,-701.83,0.0004133,30]
[394913932,1764115844758,-701.83,0.0004133,30]
[394913933,1764115844768,-701.83,0.0004133,30]
[394913934,1764115844779,-500.0,0.00041527,30]
[394913935,1764115844790,-150.0,0.0004159,120]
[394913936,1764115844800,-701.83,0.00041714,30]
[394913937,1764115844811,-701.83,0.00041714,30]
[394913938,1764115844821,-701.83,0.00041714,30]
[394913939,1764115844832,-701.83,0.00041714,30]
[394913940,1764115844842,-701.83,0.00041714,30]
[394913941,1764115844852,-701.83,0.00041714,30]
[394913942,1764115844863,-701.83,0.00041714,30]
[394913943,1764115844873,-701.83,0.00041714,30]
[394913944,1764115844884,-701.83,0.00041714,30]
[394913945,1764115844895,-701.83,0.00041714,30]
[394913946,1764115844906,-701.83,0.00041714,30]
[394913947,1764115844922,-701.83,0.00041714,30]
[394913948,1764115844932,-701.83,0.00041714,30]
[394913949,1764115844942,-701.83,0.00041714,30]
[394913950,1764115844954,-701.83,0.00041714,30]
[394913951,1764115844964,-701.83,0.00041714,30]
[394913952,1764115844974,-701.83,0.00041714,30]
[394913953,1764115844984,-701.83,0.00041714,30]
[394913954,1764115844996,-701.83,0.00041714,30]
[394913955,1764115845006,-701.83,0.00041714,30]
[394913956,1764115845015,-701.83,0.00041714,30]
[394913957,1764115845025,-701.83,0.00041714,30]
[394913958,1764115845034,-701.83,0.00041714,30]
[394913959,1764115845044,-701.83,0.00041714,30]
[394913960,1764115845053,-701.83,0.00041714,30]
[394913961,1764115845063,-687.88,0.00041714,30]
[394913962,1764115845073,-16072.8238,0.00041738,2]
[394913963,1764115845086,-500.0,0.00041801,30]
[394913964,1764115845096,-173.58810173,0.00041838,89]
[394913965,1764115845107,-1000.0,0.00041838,120]
[394913966,1764115845117,-196.21191863,0.000419,120]
[394913967,1764115845127,-567.0,0.000419,22]
[394913968,1764115845138,-500.0,0.00041937,2]
[394913969,1764115845149,-500.0,0.00041937,8]
[394913970,1764115845159,-500.0,0.00041937,8]
[394913971,1764115845170,-500.0,0.00041937,8]
[394913972,1764115845180,-500.0,0.00041937,8]
[394913973,1764115845191,-500.0,0.00041937,8]
[394913974,1764115845202,-500.0,0.00041937,8]
[394913975,1764115845212,-714.22,0.00041937,8]
[394913976,1764115845222,-500.0,0.00041937,2]
[394913977,1764115845233,-500.0,0.00041937,2]
[394913978,1764115845243,-500.0,0.00041937,8]
[394913979,1764115845254,-4287.09,0.00041937,8]
[394913980,1764115845264,-500.0,0.00041937,8]
[394913981,1764115845277,-3586.88,0.00041937,8]
[394913982,1764115845287,-622.94,0.00041937,8]
[394913983,1764115845297,-673.73,0.00041937,8]
[394913984,1764115845308,-500.0,0.00041937,8]
[394913985,1764115845317,-500.0,0.00041938,120]
[394913986,1764115845327,-500.0,0.00041938,120]
[394913987,1764115845337,-500.0,0.00041938,120]
[394913988,1764115845347,-500.0,0.00041938,120]
[394913989,1764115845357,-500.0,0.00041938,120]
[394913990,1764115845367,-500.0,0.00041938,120]
[394913991,1764115845377,-500.0,0.00041938,120]
[394913992,1764115845389,-500.0,0.00041938,120]
[394913993,1764115845399,-500.0,0.00041938,120]
[394913994,1764115845409,-500.0,0.00041938,120]
[394913995,1764115845419,-500.0,0.00041938,120]
[394913996,1764115845429,-500.0,0.00041938,120]
[394913997,1764115845439,-500.0,0.00041938,120]
[394913998,1764115845449,-500.0,0.00041938,120]
[394913999,1764115845459,-500.0,0.00041938,120]
[394914000,1764115845473,-500.0,0.00041938,120]
[394914001,1764115845483,-500.0,0.00041938,120]
[394914002,1764115845492,-500.0,0.00041938,120]
[394914003,1764115845503,-500.0,0.00041938,120]
[394914004,1764115845513,-500.0,0.00041938,120]
[394914005,1764115845524,-500.0,0.00041938,120]
[394914006,1764115845533,-500.0,0.00041938,120]
[394914007,1764115845543,-500.0,0.00041938,120]
[394914008,1764115845554,-500.0,0.00041938,120]
[394914009,1764115845563,-500.0,0.00041938,120]
[394914010,1764115845574,-500.0,0.00041938,120]
[394914011,1764115845584,-500.0,0.00041938,120]
[394914012,1764115845594,-500.0,0.00041938,120]
[394914013,1764115845604,-500.0,0.00041938,120]
[394914014,1764115845614,-500.0,0.00041938,120]
[394914015,1764115845625,-500.0,0.00041938,120]
[394914016,1764115845636,-500.0,0.00041938,120]
[394914017,1764115845647,-500.0,0.00041938,120]
[394914018,1764115845658,-500.0,0.00041938,120]
[394914019,1764115845668,-500.0,0.00041938,120]
[394914020,1764115845678,-500.0,0.00041938,120]
[394914021,1764115845688,-500.0,0.00041938,120]
[394914022,1764115845698,-679.0,0.00041938,120]
[394914023,1764115845709,-169.38725,0.00041938,11]
[394914024,1764115845720,-150.0,0.00041938,11]
[394914025,1764115845730,-500.0,0.00041938,120]
[394914026,1764115845741,-200.0,0.00041938,11]
[394914027,1764115845752,-925.0,0.00041938,11]
[394914028,1764115845763,-339.0,0.00041938,7]
[394914029,1764115845773,-15564.54115587,0.00041938,21]
[394914030,1764115845783,-291519.91937322,0.00041938,7]
[394914055,1764117032153,-181.60109685,0.00025221,2]
[394914056,1764117032164,-150.0,0.00025321,2]
[394914057,1764117032173,-150.0,0.00025321,2]
[394914058,1764117032183,-54.85205415,0.00025321,2]
[394914060,1764117037487,-95.14794585,0.00025321,2]
[394914061,1764117037510,-150.0,0.00025321,2]
[394914062,1764117037532,-150.0,0.00025321,2]
[394914063,1764117037553,-150.0,0.00025321,2]
[394914064,1764117037574,-150.0,0.00025321,2]
[394914065,1764117037595,-150.0,0.00025321,2]
[394914066,1764117037616,-150.0,0.00025321,2]
[394914067,1764117037637,-114.64172661,0.00025321,2]
[394914087,1764117040303,-35.35827339,0.00025321,2]
[394914088,1764117040326,-150.0,0.00025321,2]
[394914089,1764117040348,-9.64172661,0.00025321,2]
[394914090,1764117040361,-140.35827339,0.00025321,2]
[394914091,1764117040370,-150.0,0.00025321,2]
[394914092,1764117040379,-150.0,0.00025321,2]
[394914093,1764117040388,-150.0,0.00025321,2]
[394914094,1764117040396,-46.87947715,0.00025321,2]
[394914095,1764117040611,-103.12052285,0.00025321,2]
[394914096,1764117040620,-150.0,0.00025321,2]
[394914097,1764117040629,-150.0,0.00025321,2]
[394914098,1764117040639,-163.26,0.00025321,2]
[394914099,1764117040648,-1602.0,0.0003107,2]
[394914100,1764117040656,-1320.0,0.0003107,2]
[394914101,1764117040665,-609.0,0.0003107,2]
[394914102,1764117040674,-393.35517582,0.00037053,30]
[394914103,1764117040683,-153.46,0.00037489,2]
[394914104,1764117040692,-318.61887527,0.00037626,2]
[394914105,1764117040701,-150.0,0.00037726,7]
[394914106,1764117040711,-150.0,0.00037726,7]
[394914107,1764117040719,-150.0,0.00037726,7]
[394914108,1764117040729,-7215.05,0.00037897,2]
[394914109,1764117040738,-150.0,0.00038048,7]
[394914110,1764117040747,-150.0,0.00038371,7]
[394914111,1764117040756,-150.0,0.00038693,7]
[394914112,1764117040764,-17179.53390714,0.00039,2]
[394914113,1764117040774,-150.0,0.00039016,7]
[394914114,1764117040783,-150.0,0.00039338,7]
[394914116,1764117040792,-150.0,0.00039661,7]
[394914118,1764117040801,-150.0,0.00039822,7]
[394914120,1764117040810,-150.0,0.00039983,7]
[394914122,1764117040819,-576.0,0.00039995,120]
[394914124,1764117040828,-379.4,0.00040087,2]
[394914125,1764117040837,-999.0,0.00040135,3]
[394914126,1764117040846,-150.0,0.00040306,7]
[394914127,1764117040855,-168.0,0.00040448,120]
[394914128,1764117040863,-168.0,0.00040474,7]
[394914130,1764117040872,-1212.01,0.00040481,2]
[394914131,1764117040881,-169.8,0.00040481,2]
[394914132,1764117040890,-417.6,0.00040481,2]
[394914133,1764117040899,-417.6,0.00040481,2]
[394914134,1764117040908,-1212.01,0.00040481,2]
[394914135,1764117040917,-169.8,0.00040481,2]
[394914136,1764117040926,-500.0,0.00040619,5]
[394914137,1764117040936,-3689.32709758,0.00040621,15]
[394914138,1764117040945,-184.17,0.00040621,58]
[394914139,1764117040954,-4748.43,0.00040621,30]
[394914140,1764117040963,-150.0,0.00040628,7]
[394914141,1764117040972,-168.0,0.00040848,2]
[394914142,1764117040981,-168.0,0.00040909,2]
[394914143,1764117040990,-153.46,0.00040913,2]
[394914144,1764117040999,-200.0,0.00040923,2]
[394914145,1764117041008,-150.0,0.00040938,2]
[394914146,1764117041017,-150.0,0.0004095,7]
[394914147,1764117041027,-1212.01,0.00040978,2]
[394914148,1764117041036,-169.8,0.00040978,2]
[394914149,1764117041048,-835.0,0.00040978,2]
[394914150,1764117041058,-6102.58199226,0.00041,10]
[394914151,1764117041068,-168.0,0.00041027,2]
[394914152,1764117041077,-169.26,0.00041078,2]
[394914153,1764117041086,-1212.01,0.00041078,2]
[394914154,1764117041095,-835.2,0.00041078,2]
[394914155,1764117041104,-168.0,0.00041136,120]
[394914156,1764117041113,-1212.01,0.00041178,30]
[394914157,1764117041123,-339.51,0.00041178,30]
[394914158,1764117041133,-417.6,0.00041178,30]
[394914159,1764117041142,-1638.0,0.000412,7]
[394914160,1764117041151,-168.0,0.00041242,2]
[394914161,1764117041160,-150.0,0.00041273,30]
[394914162,1764117041170,-1101.28,0.00041303,30]
[394914163,1764117041179,-150.0,0.00041303,30]
[394914164,1764117041188,-300.0,0.00041303,30]
[394914165,1764117041197,-385.3,0.00041303,30]
[394914166,1764117041206,-169.8,0.00041303,30]
[394914167,1764117041214,-417.6,0.00041303,30]
[394914168,1764117041223,-169.8,0.00041303,30]
[394914169,1764117041232,-1212.01,0.00041303,30]
[394914170,1764117041241,-169.8,0.00041303,30]
[394914171,1764117041250,-1212.01,0.00041303,30]
[394914172,1764117041259,-169.8,0.00041303,30]
[394914173,1764117041271,-417.6,0.00041303,30]
[394914174,1764117041281,-1212.01,0.00041303,30]
[394914175,1764117041290,-168.39,0.00041303,30]
[394914176,1764117041299,-417.6,0.00041303,30]
[394914177,1764117041309,-1212.01,0.00041303,30]
[394914178,1764117041318,-417.6,0.00041303,30]
[394914179,1764117041327,-1212.01,0.00041303,30]
[394914180,1764117041336,-417.6,0.00041303,30]
[394914181,1764117041347,-1212.01,0.00041303,30]
[394914182,1764117041365,-1212.01,0.00041303,30]
[394914183,1764117041386,-1212.01,0.00041303,30]
[394914184,1764117041398,-1212.01,0.00041303,30]
[394914185,1764117041407,-1212.01,0.00041303,30]
[394914186,1764117041416,-1212.01,0.00041303,30]
[394914187,1764117041426,-1212.01,0.00041303,30]
[394914188,1764117041435,-1212.01,0.00041303,30]
[394914189,1764117041444,-1197.1,0.00041303,30]
[394914190,1764117041455,-168.0,0.0004141,7]
[394914191,1764117041465,-168.0,0.00041519,120]
[394914192,1764117041474,-385.3,0.00041577,30]
[394914193,1764117041483,-150.0,0.00041595,30]
[394914194,1764117041493,-298.78553719,0.00041714,3]
[394914195,1764117041503,-318.61887527,0.00041735,2]
[394914196,1764117041512,-1000.0,0.00041774,14]
[394914197,1764117041522,-1000.0,0.0004178,14]
[394914198,1764117041531,-200.0,0.000418,30]
[394914199,1764117041540,-500.0,0.00041835,31]
[394914200,1764117041550,-500.0,0.00041835,7]
[394914201,1764117041560,-500.0,0.00041835,31]
[394914202,1764117041569,-500.0,0.00041835,31]
[394914203,1764117041579,-500.0,0.00041835,31]
[394914204,1764117041589,-500.0,0.00041835,31]
[394914205,1764117041599,-500.0,0.00041835,31]
[394914206,1764117041608,-500.0,0.00041835,31]
[394914207,1764117041618,-500.0,0.00041835,31]
[394914208,1764117041627,-500.0,0.00041835,31]
[394914209,1764117041637,-500.0,0.00041835,31]
[394914210,1764117041646,-500.0,0.00041835,31]
[394914211,1764117041656,-500.0,0.00041835,31]
[394914212,1764117041665,-500.0,0.00041835,31]
[394914213,1764117041674,-500.0,0.00041835,31]
[394914214,1764117041683,-500.0,0.00041835,31]
[394914215,1764117041693,-500.0,0.00041835,31]
[394914216,1764117041702,-500.0,0.00041835,31]
[394914217,1764117041712,-500.0,0.00041835,31]
[394914218,1764117041726,-500.0,0.00041835,31]
[394914219,1764117041735,-500.0,0.00041835,31]
[394914220,1764117041745,-500.0,0.00041835,31]
[394914221,1764117041755,-500.0,0.00041835,31]
[394914222,1764117041765,-500.0,0.00041835,31]
[394914223,1764117041774,-500.0,0.00041835,31]
[394914224,1764117041784,-500.0,0.00041835,31]
[394914225,1764117041798,-500.0,0.00041835,31]
[394914226,1764117041807,-500.0,0.00041835,31]
[394914227,1764117041817,-500.0,0.00041835,31]
[394914228,1764117041826,-500.0,0.00041835,31]
[394914229,1764117041835,-500.0,0.00041835,31]
[394914230,1764117041845,-500.0,0.00041835,31]
[394914231,1764117041854,-500.0,0.00041835,31]
[394914232,1764117041863,-500.0,0.00041835,31]
[394914233,1764117041872,-500.0,0.00041835,31]
[394914234,1764117041882,-500.0,0.00041835,31]
[394914235,1764117041891,-500.0,0.00041835,31]
[394914236,1764117041901,-500.0,0.00041835,31]
[394914237,1764117041910,-500.0,0.00041835,31]
[394914238,1764117041920,-500.0,0.00041835,31]
[394914239,1764117041929,-500.0,0.00041835,31]
[394914240,1764117041939,-500.0,0.00041835,31]
[394914241,1764117041949,-500.0,0.00041835,31]
[394914242,1764117041958,-500.0,0.00041835,31]
[394914243,1764117041968,-500.0,0.00041835,31]
[394914244,1764117041978,-500.0,0.00041835,31]
[394914245,1764117041988,-500.0,0.00041835,31]
[394914246,1764117041997,-500.0,0.00041835,31]
[394914247,1764117042006,-500.0,0.00041835,31]
[394914248,1764117042016,-500.0,0.00041835,31]
[394914249,1764117042025,-500.0,0.00041835,31]
[394914250,1764117042034,-500.0,0.00041835,31]
[394914251,1764117042044,-500.0,0.00041835,31]
[394914252,1764117042053,-500.0,0.00041835,31]
[394914253,1764117042062,-500.0,0.00041835,31]
[394914254,1764117042071,-500.0,0.00041835,31]
[394914255,1764117042081,-500.0,0.00041835,31]
[394914256,1764117042091,-419.52395795,0.00041835,31]
[394914257,1764117042101,-500.0,0.00041835,31]
[394914258,1764117042110,-500.0,0.00041835,31]
[394914259,1764117042120,-500.0,0.00041835,31]
[394914260,1764117042129,-500.0,0.00041835,31]
[394914261,1764117042138,-500.0,0.00041835,31]
[394914262,1764117042147,-500.0,0.00041835,31]
[394914263,1764117042156,-500.0,0.00041835,31]
[394914264,1764117042166,-500.0,0.00041835,31]
[394914265,1764117042175,-154.6907592,0.00041836,14]
[394914266,1764117042184,-1000.0,0.00041837,120]
[394914267,1764117042194,-151.0,0.00041837,89]
[394914268,1764117042203,-666.0,0.00041837,89]
[394914269,1764117042212,-6888.0,0.00041837,89]
[394914270,1764117042223,-500.0,0.00041837,89]
[394914271,1764117042232,-151.0,0.00041837,89]
[394914272,1764117042245,-4036.358337,0.00041838,2]
[394914273,1764117042254,-385.3,0.00041851,30]
[394914274,1764117042264,-1000.0,0.00041861,14]
[394914275,1764117042278,-196.21191863,0.000419,120]
[394914276,1764117042288,-567.0,0.000419,22]
[394914277,1764117042298,-1006.20779246,0.000419,120]
[394914278,1764117042307,-150.00000001,0.00041918,30]
[394914279,1764117042316,-150.0,0.00041918,30]
[394914280,1764117042325,-385.12641456,0.00041937,31]
[394914281,1764117042335,-500.0,0.00041937,31]
[394914282,1764117042345,-500.0,0.00041937,31]
[394914283,1764117042354,-500.0,0.00041937,31]
[394914284,1764117042363,-546.61377311,0.00041937,31]
[394914285,1764117042372,-500.0,0.00041938,2]
[394914286,1764117042382,-500.0,0.00041938,7]
[394914287,1764117042391,-500.0,0.00041938,7]
[394914288,1764117042400,-500.0,0.00041938,7]
[394914289,1764117042409,-500.0,0.00041938,7]
[394914290,1764117042418,-500.0,0.00041938,7]
[394914291,1764117042427,-500.0,0.00041938,7]
[394914292,1764117042437,-182.65,0.00041938,7]
[394914293,1764117042446,-500.0,0.00041938,8]
[394914294,1764117042455,-500.0,0.00041938,8]
[394914295,1764117042465,-500.0,0.00041938,8]
[394914296,1764117042474,-684.46,0.00041938,8]
[394914297,1764117042483,-500.0,0.00041938,8]
[394914298,1764117042493,-655.0,0.00041938,11]
[394914299,1764117042502,-500.0,0.00041938,2]
[394914300,1764117042511,-500.0,0.00041938,8]
[394914301,1764117042520,-217.03,0.00041938,7]
[394914302,1764117042530,-500.0,0.00041938,8]
[394914303,1764117042539,-500.0,0.00041938,8]
[394914304,1764117042548,-150.0,0.00041938,11]
[394914305,1764117042558,-169.38725,0.00041938,11]
[394914306,1764117042567,-500.0,0.00041938,2]
[394914307,1764117042576,-500.0,0.00041938,8]
[394914308,1764117042586,-4108.46,0.00041938,8]
[394914309,1764117042595,-500.0,0.00041938,8]
[394914310,1764117042604,-3437.43,0.00041938,8]
[394914311,1764117042613,-500.0,0.00041938,8]
[394914312,1764117042623,-500.0,0.00041938,120]
[394914313,1764117042632,-596.99,0.00041938,8]
[394914314,1764117042641,-645.66,0.00041938,8]
[394914315,1764117042651,-152.0,0.00041938,7]
[394914316,1764117042660,-7782.27057794,0.00041938,21]
[394914317,1764117042669,-8351.40307699,0.00041938,7]
[394914344,1764117045710,-1000.0,0.000419,7]
[394914345,1764117045721,-3334.78576873,0.00041938,7]
[394914347,1764117046217,-356.29965118,0.00041938,7]
[394914348,1764117046456,-1509.34266157,0.00041938,7]
[394914349,1764117046469,-670.1014765,0.00041938,7]
[394914350,1764117046480,-2983.47835526,0.00041938,7]
[394914351,1764117046490,-582.0582955,0.00041938,7]
[394914352,1764117046501,-290.25404442,0.00041938,7]
[394914392,1764117048641,343.53,0.00013699,2]
[394914747,1764117052197,-264.19239521,0.00020187,2]
[394916073,1764117065520,195.0,0.00022206,120]
[394916121,1764117065962,264.19239521,0.00022206,120]
[394916191,1764117066658,200.0,0.00022206,120]
[394918284,1764117368457,1864.9736528,0.00025,120]
[394918285,1764117652192,-908.0,0.0002,7]
[394918286,1764117657283,-200.0,0.0002,7]
[394918287,1764117659883,-573.41,0.0002,7]
[394918326,1764118232178,-1533.59,0.0002,7]
[394918327,1764118232188,-79.33760479,0.00020187,2]
[394918328,1764118232198,-200.0,0.00022,2]
[394918329,1764118232207,-600.0,0.00025,14]
[394918330,1764118232217,-343.53,0.00026676,2]
[394918331,1764118232226,-427.01065334,0.00030991,2]
[394918332,1764118232235,-343.53,0.00033165,2]
[394918333,1764118232245,-541.0,0.00033359,3]
[394918334,1764118232254,-801.15719234,0.00033359,3]
[394918335,1764118232266,-398.84280766,0.00033359,3]
[394918336,1764118232276,-300.0,0.00033359,3]
[394918337,1764118232285,-467.45030931,0.0003336,2]
[394918338,1764118232296,-2970.54969069,0.0003336,2]
[394918339,1764118232305,-1239.76455471,0.0003336,2]
[394918340,1764118232317,-361.23544529,0.0003336,2]
[394918341,1764118232327,-343.65551571,0.0003336,2]
[394918342,1764118232338,-259.11,0.0003336,2]
[394918343,1764118232349,-716.23448429,0.0003336,2]
[394918344,1764118232358,-617.899,0.0003336,2]
[394918345,1764118232368,-1256.0,0.0003336,2]
[394918346,1764118232378,-822.0,0.0003336,2]
[394918347,1764118232387,-659.0,0.0003336,2]
[394918349,1764118232396,-150.0,0.0003336,2]
[394918351,1764118232405,-150.0,0.0003336,2]
[394918353,1764118232414,-908.0,0.0003336,2]
[394918354,1764118232423,-2433.712,0.0003636,2]
[394918355,1764118232432,-908.0,0.0003636,2]
[394918356,1764118232442,-500.0,0.00037053,30]
[394918357,1764118232451,-500.0,0.00037053,30]
[394918358,1764118232460,-500.0,0.00037053,30]
[394918359,1764118232469,-517.67424312,0.00037053,30]
[394918360,1764118232479,-500.0,0.00037053,30]
[394918361,1764118232488,-500.0,0.00037053,30]
[394918362,1764118232497,-500.0,0.00037053,30]
[394918363,1764118232508,-166.66,0.00038651,30]
[394918364,1764118232517,-1000.0,0.00039,120]
[394918365,1764118232527,-5000.0,0.00039099,120]
[394918366,1764118232536,-908.0,0.0003936,2]
[394918367,1764118232545,-166.66,0.00039465,30]
[394918368,1764118232554,-1000.0,0.000395,120]
[394918369,1764118232563,-1000.0,0.00039545,2]
[394918370,1764118232573,-250.0,0.0003961,2]
[394918371,1764118232582,-343.53,0.00039654,2]
[394918372,1764118232591,-3667.8,0.00039774,2]
[394918373,1764118232600,-1000.0,0.0004,120]
[394918374,1764118232610,-213.0,0.00040233,2]
[394918375,1764118232619,-166.66,0.00040278,30]
[394918376,1764118232628,-210.0,0.00040363,2]
[394918377,1764118232638,-200.0,0.00040476,2]
[394918378,1764118232647,-1076.0,0.000405,7]
[394918379,1764118232660,-422.2346875,0.0004068,3]
[394918380,1764118232669,-2516.98456408,0.000407,117]
[394918381,1764118232681,-3026.01543592,0.000407,117]
[394918382,1764118232691,-184.17073224,0.000407,58]
[394918383,1764118232701,-500.0,0.00040707,30]
[394918384,1764118232710,-461.0,0.00040711,30]
[394918385,1764118232720,-328.81383184,0.0004079,2]
[394918386,1764118232732,-593.68559843,0.0004079,2]
[394918387,1764118232743,-1769.97305483,0.0004079,2]
[394918388,1764118232754,-293.801,0.0004079,2]
[394918391,1764118240230,-1674.38258997,0.0004079,2]
[394918394,1764118240242,-313.71750966,0.0004079,2]
[394918396,1764118240253,-1372.94995013,0.0004079,2]
[394918398,1764118240264,-1740.98723338,0.0004079,2]
[394918399,1764118240502,-950.42500211,0.0004079,2]
[394918400,1764118240514,-324.4526,0.0004079,2]
[394918401,1764118240524,-3140.00154109,0.0004079,2]
[394918402,1764118240557,-9240.19879053,0.0004079,2]
[394918403,1764118240567,-251.80552637,0.0004079,2]
[394918408,1764118244007,-500.0,0.000199,2]